Cogmind - Beta 17.1 @@@ ROGUE MODE // 2026.09.04 @ 20:22:29 Player: Finn Result: Destroyed by D-53 Grenadier with Mini Grenade Launcher Performance ------------- Evolutions (1) 500 Regions Visited (3) 600 Robots Destroyed (39) 195 Value Destroyed (813) 813 Prototype IDs (1) 20 Alien Tech Used (0) 0 Bonus (0) 0 TOTAL SCORE: 2128 Bonus ------- None Cogmind --------- Core Integrity 0/400 Matter 275/300 Energy 252/265 System Corruption 0% Temperature Warm (104) Movement Core (200) Ox3 Location -9/Mines Parts ------- > --- POWER (1) -------- Improved Ion Engine > --- PROPULSION (2) --- (None) > --- UTILITY (4) ------ Terrain Scan Processor > --- WEAPON (2) ------- Advanced Beam Cannon > --- INVENTORY (5) ---- Ion Engine Light Ion Engine Beam Rifle Heavy Assault Rifle Peak State ------------ > --- POWER ------------ Ion Engine > --- PROPULSION ------- Flight Unit Flight Unit > --- UTILITY ---------- Improved Terrain Scanner Terrain Scan Processor ECM Suite Hardened Light Armor Plating > --- WEAPON ----------- Small Laser Heavy Assault Rifle > --- INVENTORY -------- Ion Engine Improved Ion Engine Medium Laser Beam Rifle Light Assault Rifle [Rating: 14] Favorites ----------- Power Ion Engine Engine Ion Engine Propulsion Flight Unit Wheel Wheel Flight Unit Flight Unit Utility Improved Terrain Scanner Device Improved Terrain Scanner Storage Small Storage Unit Processor Terrain Scan Processor Protection Hardened Light Armor Plating Weapon Light Assault Rifle Energy Gun Small Laser Energy Cannon Advanced Beam Cannon Ballistic Gun Light Assault Rifle Launcher Grenade Launcher Build | -11 -10 -9 -9 ------- Run | Yrd Mat Mat Min Slots Evolved 2 | . . 2 . Power . | . . . . Propulsion . | . . . . Utility 2 | . . 2 . Weapon . | . . . . Parts Attached 33 | 10 4 17 2 Power 5 | 2 . 3 . Engine 5 | 2 . 3 . Core . | . . . . Reactor . | . . . . Propulsion 10 | 4 . 6 . Treads . | . . . . Leg . | . . . . Wheel 4 | 4 . . . Hover . | . . . . Flight 6 | . . 6 . Utility 6 | 1 2 3 . Device 3 | . 1 2 . Storage 1 | 1 . . . Processor 1 | . 1 . . Hackware . | . . . . Protection 1 | . . 1 . Artifact . | . . . . Weapon 12 | 3 2 5 2 Energy Gun 3 | 2 . 1 . Energy Cannon 2 | . . 1 1 Ballistic Gun 6 | 1 2 3 . Ballistic Cannon . | . . . . Launcher 1 | . . . 1 Special Weapon . | . . . . Impact Weapon . | . . . . Slashing Weapon . | . . . . Piercing Weapon . | . . . . Special Melee Weapon . | . . . . Unidentified Prototypes 1 | . . 1 . Parts Lost 21 | . 3 13 5 Power 3 | . 1 2 . Propulsion 7 | . 1 4 2 Utility 4 | . . 3 1 Weapon 7 | . 1 4 2 Highest Loss Streak 9 | . 2 9 5 To Critical Strikes 1 | . . 1 . Average Backups 4 | 2 3 4 5 Power 1 | . . 1 2 Propulsion . | . . . . Utility . | . . . . Weapon 2 | . 1 2 3 Tool/Special . | . . . . Unused Backups 2 | . . . 2 Power 1 | . . . 1 Propulsion . | . . . . Utility . | . . . . Weapon 1 | . . . 1 Tool/Special . | . . . . Average Slot Usage (%) 86 | . 97 81 75 Engine 11 | . 13 10 11 Wheel 12 | . 26 4 . Flight 8 | . . 12 21 Device 15 | . 13 17 10 Storage 1 | . 4 . . Processor 10 | . 9 11 11 Protection 2 | . . 4 . Energy Gun 10 | . 14 10 2 Energy Cannon 2 | . . 2 11 Ballistic Gun 9 | . 13 8 . Launcher 1 | . . . 8 Peak Build Rating 14 | 6 10 14 14 Average Rating 11 | 5 9 12 12 On Entrance 7 | . 6 9 14 Avg Prop Armor Cover (%) . | . . . . Naked Turns . | . . . . Heaviest Build 18 | 13 15 18 15 Greatest Support 32 | 32 26 10 8 Greatest Overweight (x) 5 | 1 . 5 1 Average Overweight (x) . | . . . 1 Largest Inventory Capacity 8 | 8 8 5 5 Average Capacity 5 | 7 5 5 5 Most Carried 7 | 5 7 5 5 Average Carried 4 | 2 3 4 4 Final Capacity 8 | 8 5 5 5 Final Carried 5 | 5 4 5 4 Class Distribution -------------------- 55% | Scavenger-Mutant 44% | Mutant Dominant Class ---------------- Mutant | -10/Materials Scavenger-Mutant | -9/Materials Scavenger-Mutant | -9/Mines Resources | -11 -10 -9 -9 ----------- Run | Yrd Mat Mat Min Matter Collected 789 | 308 156 325 . Remotely . | . . . . Salvage Created 1060 | 128 302 611 19 Parts 75 | 5 23 43 4 Haulers Intercepted . | . . . . Recyclers Shooed 1 | . . 1 . Parts Field Recycled . | . . . . Retrieved Matter . | . . . . Parts Self-Destructed . | . . . . Prevented . | . . . . Parts Restored . | . . . . Kills | -11 -10 -9 -9 ------- Run | Yrd Mat Mat Min Combat Hostiles Destroyed 31 | . 10 20 1 Guns 30 | . 10 20 . Cannons 1 | . . . 1 Classes Destroyed 8 | 2 4 1 1 Builder 2 | . 1 . 1 Tunneler 2 | 2 . . . Recycler 1 | 1 . . . Watcher 3 | . 1 2 . Swarmer 17 | . 6 11 . Grunt 9 | . 4 5 . Sentry 4 | . . 4 . Demolisher 1 | . . . 1 Best Kill Streak 6 | 3 3 6 2 Combat Bots Only 6 | . 3 6 1 Max Kills in Single Turn 2 | 1 1 2 2 Gunslinging 1 | . . 1 . Exploded . | . . . . Melee . | . . . . Uniques/NPCs Destroyed . | . . . . Combat | -11 -10 -9 -9 -------- Run | Yrd Mat Mat Min Hostile Shots Fired 214 | . 54 151 9 Missed 47 | . 11 36 . Hits 167 | . 43 115 9 Projectile 167 | . 43 115 9 AOE 10 | . . . 10 Critical Strikes 1 | . . 1 . Damage Taken 2047 | . 439 1196 412 Core 486 | . 68 263 155 Absorbed by Shields 11 | . . 11 . Core Remaining (%) 86 | 100 72 . . Volleys Fired 124 | 8 38 73 5 Largest 2 | 2 2 2 2 Hottest 124 | 70 70 124 98 Shots Fired 214 | 16 72 118 8 Gun 202 | 16 72 114 . Cannon 9 | . . 4 5 Launcher 3 | . . . 3 Special . | . . . . Kinetic 110 | 8 35 67 . Thermal 101 | 8 37 51 5 Explosive 3 | . . . 3 Electromagnetic . | . . . . Robot Hit Streak 11 | 7 11 11 2 Robot Miss Streak 5 | 3 4 5 3 Penetration Max . | . . . . Secondary Targets 4 | . 2 2 . Max Gunslinging Chain 1 | . 1 1 . Shots Hit Robots 135 | 10 41 81 3 Core Hits 64 | 5 17 36 6 Critical Kills 1 | . . 1 . Critical Parts Destroyed . | . . . . Critical Strikes 8 | 1 1 6 . Burn 7 | 1 1 5 . Destroy 1 | . . 1 . Melee Attacks . | . . . . Impact . | . . . . Slashing . | . . . . Piercing . | . . . . Sneak Attacks . | . . . . Combat Hostiles . | . . . . Follow-up Attacks . | . . . . Damage Inflicted 1765 | 111 502 1048 104 Guns 1616 | 111 502 1003 . Cannons 82 | . . 42 40 Explosions 64 | . . . 64 Melee . | . . . . Ramming 3 | . . 3 . Kinetic 837 | 47 220 570 . Thermal 861 | 64 282 475 40 Explosive 64 | . . . 64 Electromagnetic . | . . . . Impact . | . . . . Slashing . | . . . . Piercing . | . . . . Highest Corruption . | . . . . Average Corruption . | . . . . Corruption Purged . | . . . . Corruption Blocked . | . . . . Overload Shots . | . . . . Overflow Damage 5 | . . 5 . Projectiles 5 | . . 5 . Explosions . | . . . . Melee . | . . . . Knockbacks . | . . . . Impact . | . . . . Kinetic . | . . . . Secondary . | . . . . Self-Inflicted Damage 1 | . . 1 . Shots . | . . . . Rammed 1 | . . 1 . Targets Rammed 1 | . . 1 . Kicked . | . . . . Crushed . | . . . . Highest Temperature 219 | 70 219 192 104 Average Temperature 57 | 25 60 59 66 Received Heat Transfer 411 | . 168 243 . Siege Activations . | . . . . Martial Activations . | . . . . Shielding Activations . | . . . . Robots Disrupted . | . . . . Combat Hostiles . | . . . . Robots Corrupted . | . . . . Combat Hostiles . | . . . . Parts Fried . | . . . . Impact Corruptions . | . . . . Robots Melted . | . . . . Combat Hostiles . | . . . . Parts Melted 8 | 1 2 5 . Heat Transferred 2743 | 259 853 1557 74 Parts Sabotaged . | . . . . Parts Stolen . | . . . . Parts Stripped . | . . . . Power Chain Reactions . | . . . . Alert | -11 -10 -9 -9 ------- Run | Yrd Mat Mat Min Maximum Alert Level . | . . . . Low Security (%) 100 | 100 100 100 100 Level 1 . | . . . . Level 2 . | . . . . Level 3 . | . . . . Level 4 . | . . . . Level 5 . | . . . . High Security . | . . . . Max Security . | . . . . Peak Influence 135 | 10 130 135 39 Initial 22 | . . 13 22 Average 35 | 1 34 48 3 Influence Increases 866 | 15 282 525 44 Destroy 0b10 Robot/C 620 | . 200 400 20 Destroy 0b10 Robot/NC 40 | 15 10 10 5 Destroy Leader 166 | . 52 104 10 Successful Hack 15 | . 5 10 . Destroy Structure 10 | . . 1 9 Lose Combat Pursuer 15 | . 15 . . Influence Decreases 866 | 15 250 500 101 Entered New Map 54 | . . 19 35 Time Decay 628 | 15 230 361 22 Lost Part 184 | . 20 120 44 Squads Dispatched 4 | . 2 2 . Investigation 2 | . 1 1 . Extermination . | . . . . Reinforcement 2 | . 1 1 . Assault . | . . . . Garrison . | . . . . Intercept . | . . . . Searches Triggered . | . . . . Construction Impeded . | . . . . Haulers Reinforced . | . . . . Active Scanning Responses . | . . . . Cargo Convoy Interrupts . | . . . . Stealth | -11 -10 -9 -9 --------- Run | Yrd Mat Mat Min Distress Signals 2 | . 2 . . Communications Jammed . | . . . . Distress Signals . | . . . . Times Spotted 50 | . 17 31 2 Peak Tracking Total 5 | . 3 5 2 Tactical Retreats 3 | . 1 2 . ECM-based Alert Blocks 6 | . . 6 . Traps | -11 -10 -9 -9 ------- Run | Yrd Mat Mat Min Traps Triggered 3 | . 1 2 . Indirectly . | . . . . Trap Hack Attempts . | . . . . Triggered . | . . . . Disarmed . | . . . . Reprogrammed . | . . . . Reused . | . . . . Traps Extracted . | . . . . Installed . | . . . . Triggered . | . . . . Machines | -11 -10 -9 -9 ---------- Run | Yrd Mat Mat Min Machines Disabled . | . . . . Max in Single Turn . | . . . . Machines Repaired . | . . . . Machines Dismantled . | . . . . Machines Sabotaged . | . . . . Overloaded Fab Kills . | . . . . Hacking | -11 -10 -9 -9 --------- Run | Yrd Mat Mat Min Machines Accessed 10 | . 4 6 . Terminals 9 | . 3 6 . Fabricators . | . . . . Repair Stations . | . . . . Recycling Units 1 | . 1 . . Scanalyzers . | . . . . Garrison Access . | . . . . Total Hacks 20 | . 8 12 . Successful 11 | . 5 6 . Failed 9 | . 3 6 . Catastrophic . | . . . . Database Lockouts . | . . . . Manual . | . . . . Terminals 17 | . 5 12 . Fabricators . | . . . . Repair Stations . | . . . . Recycling Units 3 | . 3 . . Scanalyzers . | . . . . Garrison Access . | . . . . Terminal Hacks 10 | . 4 6 . Emergency Access Points 1 | . . 1 . Alert Level 1 | . . 1 . Locate Traps 3 | . 2 1 . Zone Layout 5 | . 2 3 . Fabricator Hacks . | . . . . Repair Station Hacks . | . . . . Recycling Unit Hacks 1 | . 1 . . Retrieve Components 1 | . 1 . . Scanalyzer . | . . . . Garrison Access Hacks . | . . . . Unauthorized Hacks . | . . . . Terminals . | . . . . Fabricators . | . . . . Repair Stations . | . . . . Recycling Units . | . . . . Scanalyzers . | . . . . Garrison Access . | . . . . Data Cores Recovered . | . . . . Used . | . . . . Hacking Detections 6 | . 2 4 . Full Trace Events 1 | . . 1 . Feedback Events . | . . . . Feedback Blocked . | . . . . Robot Schematics Acquired . | . . . . Robots Built . | . . . . Authchips . | . . . . Time . | . . . . Total Robot Build Rating . | . . . . Part Schematics Acquired . | . . . . Parts Built . | . . . . Authchips . | . . . . Time . | . . . . Total Part Build Rating . | . . . . Part Studies Acquired . | . . . . Parts Repaired . | . . . . Time . | . . . . Parts Recycled . | . . . . Recycled Matter . | . . . . Retrieved Matter . | . . . . Retrieved Components 5 | . 5 . . Parts Scanalyzed . | . . . . Part Schematics Acquired . | . . . . Parts Damaged . | . . . . Bothacking | -11 -10 -9 -9 ------------ Run | Yrd Mat Mat Min Used RIF Installer . | . . . . Robots Hacked . | . . . . Non-combat . | . . . . Combat . | . . . . Robot Hacks Applied . | . . . . Relay Couplers Released . | . . . . Fabnet Peak Effective % . | . . . . Robots Rewired . | . . . . Allies Hacked . | . . . . Hacks Repelled . | . . . . Allies | -11 -10 -9 -9 -------- Run | Yrd Mat Mat Min Total Allies . | . . . . Largest Group . | . . . . Highest-Rated Group . | . . . . Highest-Rated Ally . | . . . . Total Orders . | . . . . Ally Attacks . | . . . . Total Damage . | . . . . Kills . | . . . . Allies Corrupted . | . . . . Allies Melted . | . . . . Intel | -11 -10 -9 -9 ------- Run | Yrd Mat Mat Min Active Infowar (turns) 2077 | . 816 1014 247 Terrain 2077 | . 816 1014 247 ECM 605 | . . 605 . Robot Analysis Total . | . . . . Derelict Logs Recovered . | . . . . Drone Launches . | . . . . Drone Recoveries . | . . . . Exploration | -11 -10 -9 -9 ------------- Run | Yrd Mat Mat Min Turns Passed 2291 | 122 832 1080 257 Spaces Moved 1315 | 65 547 685 18 Core 16 | 4 . 12 . Treads . | . . . . Legs . | . . . . Wheels 951 | 61 547 343 . Hover . | . . . . Flight 348 | . . 330 18 Fastest Speed 50 | 50 80 80 117 Average Speed 102 | 96 88 113 117 Slowest Speed 360 | 100 90 360 117 Overloaded Moves . | . . . . Propulsion Burnouts . | . . . . Robots Hopped . | . . . . Potential Cave-ins . | . . . . Cave-ins Triggered . | . . . . Exploration Rate (%) 30 | 3 64 46 7 Regions Visited 3 Branch Regions 1 Pre-discovered Areas . | . . . . Known Exits Taken . | . . . . Unknown Exits Taken 3 | 1 1 1 . Scrap Searched . | . . . . Spaces Dug . | . . . . Terrain Destroyed 19 | . . . 19 Melee . | . . . . Projectile 3 | . . . 3 AOE 16 | . . . 16 Terrain Rammed . | . . . . Walls Destroyed . | . . . . Machines Disabled . | . . . . Actions | -11 -10 -9 -9 --------- Run | Yrd Mat Mat Min Total 2051 | 107 825 872 247 Wait 531 | 14 224 73 220 Move 1312 | 64 546 684 18 Hop . | . . . . Pick Up 30 | 11 5 13 1 Fast Attach 8 | . . 8 . Attach 23 | 6 4 12 1 Detach . | . . . . Swap 15 | 4 5 5 1 Drop 7 | . 3 3 1 Fire 124 | 8 38 73 5 Melee . | . . . . Ram 1 | . . 1 . Kick . | . . . . Crush . | . . . . Escape Stasis . | . . . . Rewire . | . . . . Trap . | . . . . Miscellaneous . | . . . . Route ------- -11/Scrapyard -10/Materials (discovered 5 exits: *Mat x3 / [*Min] / [Sub]) -9/Materials (discovered 3 exits: [*Mat] / [*Min] / [Sto]) -9/Mines History --------- Turn | Location | Event 35 | -11/Scrapyard | Discovered new exit (range 15) 123 | -11/Scrapyard | Entered Materials 310 | -10/Materials | Build established: Mutant 320 | -10/Materials | Discovered new exit (range 10) 395 | -10/Materials | Discovered new exit (range 15) 429 | -10/Materials | Discovered new exit (range 16) 840 | -10/Materials | Discovered new exit (range 15) 846 | -10/Materials | Discovered new exit (range 10) 955 | -10/Materials | Entered another Materials area 955 | -9/Materials | Evolved 2 slots: Utility x2 1202 | -9/Materials | Discovered new exit (range 7) 1360 | -9/Materials | Build established: Scavenger-Mutant 1511 | -9/Materials | Discovered new exit (range 13) 1599 | -9/Materials | Core integrity fell below 50% 1636 | -9/Materials | Lost 9 parts (1p2n3u3w) 1687 | -9/Materials | Discovered new exit (range 16) 2035 | -9/Materials | Entered Mines 2036 | -9/Mines | Assembled infested the area 2036 | -9/Mines | YI-UF0 nonchalantly dropped a Grenade Launcher on the ground 2291 | -9/Mines | Core integrity fell below 20% 2292 | -9/Mines | Destroyed by D-53 Grenadier with Mini Grenade Launcher Last Messages --------------- 02093_ K-01 Serf collects debris. 02106_ The unstable cave ceiling collapses. 02109_ K-01 Serf collects debris. 02142_ U-05 Engineer lays Concrete. 02144_ U-05 Engineer builds a Wall. 02148_ U-05 Engineer lays Concrete. 02149_ R-06 Scavenger collects Lgt. Assault Rifle. 02150_ U-05 Engineer lays Concrete. 02282_ Imp. Terrain Scanner destroyed. 02282_ U-05 Engineer builds a Wall. 02283_ D-53 Grenadier destroyed. 02283_ U-05 Engineer destroyed. 02284_ Flight Unit destroyed. 02286_ The unstable cave ceiling collapses. 02288_ Grenade Launcher destroyed. 02288_ Flight Unit destroyed. 02288_ Adv. Beam Cannon destroyed. 02288_ R-06 Scavenger destroyed. 02289_ The unstable cave ceiling collapses. Map ----- +----------------------------------------------------+ | | | | | | | | | | | ?????????????????????????????????????? | | ???????????????????#?????????????????? | | ?????????????????#???????#?#?????????? | | ?????????????????#???#???????????????? | | ???????????????????#?#???#???????????? | | ???????????? ?#??#?#?####### ? ????? | | ????????????? ???#########?## ?#??? | | ???????????????? ? ?#### ?"" #??? | | ??????????????? ? ? """ ##?? | | ????????? ?#? #####?### ? """ #?#? | | ????????? ??# #?##########?# ?##?# | | ?????????? ## #### ######### ? #### | | ???????????? ###?###?########? | | ???????????### # # #####?##?####? | | ???????????### # ########?##??# | | ??????? #?###" %= d ######?####### | | ????? ????## ] ###?###### | | ??????????# *# ###?##### | | ???????#??# %## #?##?### | | ????????#?## #= ######## | | ???????#?#### # %@ ####??## | | ??????????### # # #######? | | ??????????### ## "# ######?# | | ???????????## ## %## ######?#? | | ??????????### ### ## # ##?#####?# | | ??????????? ## ######### | | ???????????###### ######### | | ?????????#?#?#### ####?# #######?# | | ???????????#######? ####### ##?##?#?# | | ??????????? ##########?## ######### | | ?????????????########### #####??#? | | ??????????????#?####?#?# ? ######?#? | | ??????????????####??##?# ####?#??? | | ?????????????????#######?? ?###?#?#??? | | ????????????????#?#?#### ?###?##?#??? | | ????????????????????#?##? ?###?#?????? | | ????????????????????#??#? ??##???????? | | ????????????????????????? ???????????? | | ?????????????????????????????????????? | | ?????????????????????????????????????? | | ?????????????????????????????????????? | | ?????????????????????????????????????? | | ?????????????????????????????????????? | | ?????????????????????????????????????? | | ?????????????????????????????????????? | +----------------------------------------------------+ Best States ------------- Heat Dissipation 28 Energy Generation 12 Energy Capacity 265 Matter Stores 300 Matter Capacity 300 Sight Range 16 Terrain Scan Range 16 Terrain Scan Density 85 ECM Strength 1 Armor Coverage 150 Evasion (%) 44 Item Schematics ----------------- None Robot Schematics ------------------ None Fabricated ------------ Nothing Repaired ---------- Nothing Studied --------- None Alien Tech Used ----------------- None Achievements -------------- None Challenges ------------ None Game ------ Seed CoolingHugeStreamer Manual? 0 Play Time 00:16:17 Cumulative 31.6 hours Start 2026.09.04 @ 20:07:26 End 2026.09.04 @ 20:22:29 Sessions 1 Manual Loads 0 Difficulty Rogue Special Mode None Game No. 77 Rogue 60 Adventurer 15 Explorer 2 Win Type - Total 0 Types 0/0/0/0/0/0/0/0/0/0 Lore% 25 Gallery% 25 Achievement% 21 Wizard Run 0 Options --------- Layout 1 ASCII 0 Keyboard 0 Movement Mouse Keybinds 0 Fullscreen 1 Font 24/Smallcaps Map View 50x35 Zoom Use 0% Tactical HUD 1 Map Filters NONE Filters NONE Steam 1 RUN: b4b097ff-a6bf-4faf-8c98-86debe35e57c